bitfinex-derivatives/quotes_BTCF0:USTF0_20241116
["timestamp","ask_amount","ask_price","bid_price","bid_amount"]
[1731716679053,0.12467729,90966.0,90961.0,0.3608]
[1731716679253,0.3608,90962.0,90958.0,0.00164855]
[1731716679454,0.3608,90962.0,90950.0,0.3608]
[1731716682960,0.12467729,90958.0,90950.0,0.3608]
[1731716686765,0.09168,90957.0,90950.0,0.3608]
[1731716687262,0.3608,90962.0,90950.0,0.3608]
[1731716687459,0.09168,90956.0,90950.0,0.3608]
[1731716688261,0.15657721,90965.0,90950.0,0.3608]
[1731716688468,0.09168,90964.0,90950.0,0.3608]
[1731716688765,0.12467729,90957.0,90950.0,0.3608]
[1731716692660,0.12467729,90955.0,90950.0,0.3608]
[1731716693463,0.3608,90953.0,90938.0,0.0313]
[1731716693664,0.09168,90952.0,90933.0,0.0333]
[1731716693863,0.0638,90952.0,90933.0,0.0333]
[1731716694064,0.09168,90951.0,90948.0,1.447e-05]
[1731716694368,0.09168,90950.0,90948.0,1.447e-05]
[1731716695371,0.12467729,90949.0,90948.0,1.447e-05]
[1731716696364,0.09168,90950.0,90948.0,1.447e-05]
[1731716696875,0.3608,90953.0,90948.0,1.447e-05]
[1731716696876,0.09168,90949.0,90948.0,1.447e-05]
[1731716697272,0.03536452,90955.0,90948.0,1.447e-05]
[1731716697473,0.09168,90954.0,90951.0,0.3608]
[1731716699673,9.992e-05,90965.0,90951.0,0.3608]
[1731716699873,9.992e-05,90965.0,90960.0,0.3608]
[1731716700070,9.992e-05,90965.0,90961.0,0.0321]
[1731716700270,0.12467729,90963.0,90951.0,0.3608]
[1731716700677,9.992e-05,90965.0,90951.0,0.3608]
[1731716702079,0.0916,90964.0,90960.0,0.3608]
[1731716702575,9.992e-05,90965.0,90961.0,0.3298]
[1731716702785,9.992e-05,90965.0,90963.0,0.12467729]
[1731716703093,9.992e-05,90965.0,90954.0,0.19632332]
[1731716703285,9.992e-05,90965.0,90947.0,0.19632332]
[1731716703586,9.992e-05,90965.0,90952.0,0.031]
[1731716703771,9.992e-05,90965.0,90959.0,0.3608]
[1731716704182,9.992e-05,90965.0,90960.0,0.3298]
[1731716704583,0.00154609,90963.0,90961.0,0.3298]
[1731716704785,0.00154609,90963.0,90962.0,0.3298]
[1731716704982,0.00154609,90963.0,90960.0,0.3298]
[1731716705174,0.0916,90984.0,90961.0,0.3298]
[1731716705373,0.0916,90984.0,90974.0,0.3608]
[1731716705579,0.0916,90984.0,90982.0,0.3608]
[1731716706277,0.0916,90984.0,90958.0,0.01521249]
[1731716706278,0.09728396,90983.0,90958.0,0.01521249]
[1731716706473,0.09728396,90983.0,90948.0,1.447e-05]
[1731716706474,0.7216,90961.0,90953.0,0.0051]
[1731716706678,0.0916,90960.0,90948.0,1.447e-05]
[1731716706889,0.3608,90952.0,90948.0,1.447e-05]
[1731716708791,0.5246075,90952.0,90948.0,1.447e-05]
[1731716709887,0.3608,90952.0,90948.0,1.447e-05]
[1731716710889,0.4524,90951.0,90948.0,1.447e-05]
[1731716711691,0.3608,90951.0,90948.0,1.447e-05]
[1731716711991,0.3608,90951.0,90949.0,0.32984]
[1731716712376,0.3608,90951.0,90950.0,0.32984]
[1731716712581,0.3608,90951.0,90949.0,0.32984]
[1731716712982,0.3608,90951.0,90950.0,0.32984]
[1731716713186,0.3608,90951.0,90949.0,0.32984]
[1731716713585,0.3608,90951.0,90950.0,0.32984]
[1731716713778,0.3608,90951.0,90949.0,0.32984]
[1731716714277,0.3608,90951.0,90948.0,1.447e-05]
[1731716714278,0.3608,90951.0,90950.0,0.32984]
[1731716714477,0.3608,90951.0,90949.0,0.32984]
[1731716714895,0.3608,90951.0,90950.0,0.32984]
[1731716715080,0.3608,90951.0,90949.0,0.32984]
[1731716715591,0.3608,90951.0,90950.0,0.32984]
[1731716715792,0.3608,90961.0,90949.0,0.32984]
[1731716715981,0.0916,90967.0,90954.0,0.3608]
[1731716716286,0.3608,90970.0,90954.0,0.3608]
[1731716716491,0.3608,90970.0,90954.0,0.6608]
[1731716716691,0.3608,90970.0,90955.0,0.263055]
[1731716716883,0.3608,90970.0,90955.0,0.563055]
[1731716717686,0.3608,90970.0,90961.0,0.12467729]
[1731716717882,0.2226489,90982.0,90969.0,0.12467729]
[1731716718084,8.59e-05,90983.0,90969.0,0.12467729]
[1731716718085,8.59e-05,90983.0,90972.0,0.3608]
[1731716718289,8.59e-05,90983.0,90973.0,0.0302]
[1731716718980,8.59e-05,90983.0,90959.0,0.263055]
[1731716718981,0.3608,90974.0,90959.0,0.263055]
[1731716719194,0.3608,90965.0,90951.0,0.0051]
[1731716719397,0.3608,90957.0,90950.0,0.03]
[1731716720183,0.3608,90957.0,90950.0,0.35984]
[1731716722202,0.3608,90957.0,90950.0,0.03]
[1731716722791,0.0916,90963.0,90952.0,0.3608]
[1731716723395,0.0916,90963.0,90953.0,0.263055]
[1731716723788,0.0916,90972.0,90961.0,0.3608]
[1731716724189,0.3608,90977.0,90961.0,0.6608]
[1731716724387,0.3608,90977.0,90961.0,0.923855]
[1731716724590,0.3608,90977.0,90971.0,0.3608]
[1731716724802,0.3608,90977.0,90972.0,0.093]
[1731716725184,0.3608,90977.0,90973.0,0.32976]
[1731716725602,0.3608,90977.0,90974.0,0.32976]
[1731716725895,0.3608,90977.0,90973.0,0.32976]
[1731716726108,0.3608,90977.0,90972.0,0.093]
[1731716726399,0.3608,90977.0,90972.0,0.42276]
[1731716726893,8.59e-05,90983.0,90976.0,0.12467729]
[1731716727096,8.59e-05,90983.0,90979.0,0.3608]
[1731716727597,8.59e-05,90983.0,90980.0,0.32972]
[1731716727797,9e-07,90983.0,90980.0,0.62972]
[1731716728093,9e-07,90983.0,90981.0,0.32972]
[1731716728295,9e-07,90983.0,90982.0,0.63362425]
[1731716728487,9e-07,90983.0,90982.0,0.96334425]
[1731716728682,9e-07,90983.0,90982.0,1.26334425]
[1731716729103,9e-07,90983.0,90982.0,0.32972]
[1731716732209,9e-07,90983.0,90982.0,0.62972]
[1731716732591,9e-07,90983.0,90982.0,0.89202907]
[1731716733094,9e-07,90983.0,90980.0,0.3608]
[1731716733397,9e-07,90983.0,90981.0,0.32972]
[1731716733596,9e-07,90983.0,90980.0,0.6608]
[1731716733597,9e-07,90983.0,90982.0,0.32972]
[1731716739706,9e-07,90983.0,90980.0,0.3608]
[1731716739901,9e-07,90983.0,90971.0,0.3608]
[1731716748312,0.3608,90979.0,90968.0,0.26230907]
[1731716748605,0.3608,90970.0,90957.0,0.0051]
[1731716748805,0.3608,90970.0,90951.0,0.0051]
[1731716748806,0.3608,90959.0,90951.0,0.0051]
[1731716749005,0.0313,90958.0,90948.0,1.447e-05]
[1731716753599,0.0313,90958.0,90948.0,0.02200676]
[1731716755707,0.3608,90959.0,90951.0,0.12467729]
[1731716755908,0.0309,90969.0,90956.0,0.3608]
[1731716756109,0.0309,90969.0,90962.0,0.12467729]
[1731716756302,0.0309,90969.0,90950.0,0.26230907]
[1731716756501,0.3608,90958.0,90949.0,0.0016489]
[1731716758917,0.3608,90950.0,90949.0,0.0016489]
[1731716759427,0.7216,90950.0,90949.0,0.0016489]
[1731716759711,0.3608,90950.0,90949.0,0.0016489]
[1731716759920,0.3938,90950.0,90949.0,0.0016489]
[1731716760503,0.4255,90950.0,90949.0,0.0016489]
[1731716764015,0.48402,90950.0,90949.0,0.0016489]
[1731716764218,0.45232,90950.0,90949.0,0.0016489]
[1731716764416,0.09152,90950.0,90949.0,0.0016489]
[1731716764824,0.3608,90958.0,90949.0,0.0016489]
[1731716765121,0.09152,90957.0,90949.0,0.0016489]
[1731716766529,0.3608,90958.0,90949.0,0.0016489]
[1731716766826,0.09152,90957.0,90949.0,0.0016489]
[1731716767121,0.45232,90958.0,90949.0,0.0016489]
[1731716767421,0.3608,90958.0,90950.0,0.0657]
[1731716768225,0.09152,90965.0,90952.0,0.12467729]
[1731716768417,0.00164996,90977.0,90962.0,0.48547729]
[1731716769523,0.00164996,90977.0,90964.0,0.26230907]
[1731716769822,0.00164996,90977.0,90966.0,0.26230907]
[1731716770013,0.00164996,90977.0,90971.0,0.12467729]
[1731716770220,0.00164996,90977.0,90972.0,0.0654]
[1731716773620,0.00164996,90977.0,90967.0,0.26230907]
[1731716773816,0.3608,90976.0,90964.0,0.29681285]
[1731716774030,0.3608,90976.0,90964.0,0.03450378]
[1731716774232,0.09152,90975.0,90962.0,0.3608]
[1731716775528,0.09152,90975.0,90962.0,0.39669991]
[1731716776232,0.09152,90975.0,90962.0,0.65900898]
[1731716776743,0.3608,90976.0,90962.0,0.78368627]
[1731716776931,0.00164996,90977.0,90971.0,0.12467729]
[1731716777229,0.00164996,90977.0,90972.0,0.0634]
[1731716777438,0.00164996,90977.0,90972.0,0.0954]
[1731716777930,0.00164996,90977.0,90972.0,0.35770907]
[1731716778627,0.3608,90988.0,90972.0,0.35770907]
[1731716778628,0.3608,90988.0,90975.0,0.26230907]
[1731716778826,0.3608,90988.0,90972.0,0.0954]
[1731716778827,0.09152,90992.0,90982.0,0.12467729]
[1731716779227,0.36259,90996.0,90982.0,0.12467729]
[1731716781236,0.00179,90996.0,90982.0,0.12467729]
[1731716781634,0.09152,90999.0,90982.0,0.12467729]
[1731716782928,0.3608,91000.0,90982.0,0.15967272]
[1731716783934,0.3608,91000.0,90982.0,0.48939272]
[1731716784932,0.00164945,91004.0,90982.0,0.48939272]
[1731716785528,0.00164945,91004.0,90982.0,0.81764993]
[1731716786234,0.00164945,91004.0,90982.0,1.41771513]
[1731716786433,0.00164945,91004.0,90982.0,0.78939272]
[1731716786835,0.00164945,91004.0,90982.0,1.08980605]
[1731716787035,0.00164945,91004.0,90982.0,0.78939272]
[1731716787238,0.0307,91017.0,90982.0,0.91407001]
[1731716787449,0.4918489,91029.0,90982.0,0.91407001]
[1731716787450,0.00206001,91023.0,91011.0,0.12467729]
[1731716787632,0.0015,91023.0,91011.0,0.12467729]
[1731716787838,0.0015,91023.0,91012.0,0.033]
[1731716788134,0.0015,91023.0,91013.0,0.3608]
[1731716788335,0.00012893,91017.0,91013.0,0.3608]
[1731716789428,0.00012893,91017.0,91016.0,0.12467729]
[1731716789824,0.00012893,91017.0,91016.0,0.45427729]
[1731716790042,0.0015,91023.0,91016.0,0.45427729]
[1731716790238,0.0015,91023.0,91022.0,0.3608]
[1731716791935,0.12314,91047.0,91022.0,0.3608]
[1731716792132,0.12314,91047.0,91033.0,0.12467729]
[1731716792333,0.0317,91047.0,91033.0,0.12467729]
[1731716792935,0.00012793,91046.0,91033.0,0.12467729]
[1731716793130,0.3608,91044.0,91033.0,0.12467729]
[1731716797833,0.3608,91044.0,91030.0,0.3608]
[1731716798035,0.3608,91032.0,91025.0,0.0051]
[1731716798234,0.3608,91032.0,91015.0,0.0051]
[1731716798235,0.3608,91030.0,91015.0,0.0051]
[1731716798439,0.3608,91016.0,91012.0,8.637e-05]
[1731716798633,0.09144,91015.0,91001.0,0.0051]
[1731716798834,0.09144,91015.0,90996.0,0.12467729]
[1731716798835,0.3608,91004.0,90996.0,0.12467729]
[1731716799034,0.0306,91003.0,90996.0,0.12467729]
[1731716799937,0.3608,91004.0,90996.0,0.12467729]
[1731716800245,0.0327,91014.0,90996.0,0.14664961]
[1731716800538,0.3608,91005.0,90996.0,0.14664961]
[1731716805549,0.3608,91005.0,91004.0,0.12467729]
[1731716806342,0.3608,91016.0,91004.0,0.12467729]
[1731716806542,0.3608,91016.0,91004.0,0.15959262]
[1731716806744,0.3608,91016.0,91012.0,0.12467729]
[1731716807249,0.00060001,91035.0,91015.0,0.48547729]
[1731716807452,0.09144,91038.0,91030.0,0.12467729]
[1731716808454,0.0305,91039.0,91030.0,0.12467729]
[1731716809341,0.0305,91039.0,91030.0,0.16017902]
[1731716809852,0.3608,91044.0,91038.0,0.12467729]
[1731716812144,0.00012793,91046.0,91043.0,0.3608]
[1731716815354,0.00012793,91046.0,91033.0,0.3608]
[1731716815545,0.03102793,91046.0,91027.0,0.12467729]
[1731716816248,0.03102793,91046.0,91035.0,0.12467729]
[1731716817056,0.03102793,91046.0,91037.0,0.02197148]
[1731716818657,0.03102793,91046.0,91035.0,0.12467729]
[1731716818858,0.3608,91039.0,91018.0,0.12467729]
[1731716819155,0.3608,91030.0,91021.0,0.0051]
[1731716819345,0.3608,91022.0,91015.0,0.0051]
[1731716819544,0.3608,91022.0,91014.0,0.12467729]
[1731716820251,0.0315,91029.0,91014.0,0.12467729]
[1731716820454,0.0315,91029.0,91012.0,0.02196919]
[1731716820455,0.3923,91029.0,91028.0,0.12467729]
[1731716820761,0.0315,91029.0,91028.0,0.12467729]
[1731716823057,0.3608,91031.0,91028.0,0.12467729]
[1731716823361,0.3608,91031.0,91020.0,0.12467729]
[1731716823557,0.3608,91031.0,91012.0,0.14664648]
[1731716823558,0.3608,91022.0,91012.0,0.14664648]
[1731716823753,0.031,91021.0,91012.0,0.14664648]
[1731716824556,0.3608,91013.0,91010.0,0.00164791]
[1731716824759,0.031,91012.0,91010.0,0.00164791]
[1731716827758,0.0914,91011.0,91010.0,0.00164791]
[1731716829564,0.3608,91013.0,91010.0,0.00164791]
[1731716829769,0.3608,91013.0,91012.0,0.12467729]
[1731716829953,0.3608,91013.0,91010.0,0.00164791]
[1731716830259,0.3608,91013.0,91012.0,0.12467729]
[1731716831959,0.3608,91013.0,91010.0,0.03722584]
[1731716831960,0.3608,91013.0,91010.0,0.00164791]
[1731716832261,0.3608,91013.0,90998.0,0.0051]
[1731716832459,0.3608,90999.0,90989.0,0.0051]
[1731716832657,0.3608,90999.0,90988.0,0.03542959]
[1731716832658,0.0628,90998.0,90988.0,0.03542959]
[1731716833163,0.0628,90998.0,90982.0,0.02196919]
[1731716834064,0.0628,90998.0,90985.0,0.12467729]
[1731716838371,0.3608,90999.0,90993.0,0.12467729]
[1731716838565,0.3608,91010.0,90993.0,0.12467729]
[1731716838871,0.3608,91010.0,90986.0,0.0624]
[1731716838872,0.0914,91009.0,91002.0,0.12467729]
[1731716839264,0.0914,91009.0,90994.0,0.15797729]
[1731716839464,0.3608,90998.0,90992.0,0.00013257]
[1731716839768,0.0914,90997.0,90992.0,0.00013257]
[1731716842372,0.3608,90998.0,90992.0,0.00013257]
[1731716842563,0.0914,90997.0,90992.0,0.00013257]
[1731716845469,0.3608,90998.0,90992.0,0.00013257]
[1731716845771,0.0914,91008.0,90995.0,0.12467729]
[1731716846275,0.0914,91009.0,91004.0,0.12467729]
[1731716846465,0.3608,91010.0,91004.0,0.12467729]
[1731716846667,9.577e-05,91012.0,91006.0,0.3608]
[1731716847064,7.7e-07,91012.0,91007.0,0.52625556]
[1731716847271,7.7e-07,91012.0,91008.0,0.32964]
[1731716847469,7.7e-07,91012.0,91011.0,0.26239886]
[1731716847672,7.7e-07,91012.0,91009.0,0.0962]
[1731716847673,7.7e-07,91012.0,91010.0,0.26239886]
[1731716847867,7.7e-07,91012.0,91011.0,0.26239886]
[1731716848069,0.00164871,91029.0,91011.0,0.45431729]
[1731716848270,0.00164871,91029.0,91028.0,0.12467729]
[1731716848979,0.00177847,91029.0,91028.0,0.12467729]
[1731716850477,4.7e-07,91029.0,91028.0,0.12467729]
[1731716850675,4.7e-07,91029.0,91028.0,0.75136939]
[1731716850878,4.7e-07,91029.0,91028.0,0.75127461]
[1731716851080,4.7e-07,91029.0,91028.0,0.48898352]
[1731716852878,4.7e-07,91029.0,91028.0,0.68558232]
[1731716853275,4.7e-07,91029.0,91028.0,0.48898352]
[1731716853476,4.7e-07,91029.0,91028.0,0.68553077]
[1731716853673,4.7e-07,91029.0,91028.0,0.48898352]
[1731716854782,4.7e-07,91029.0,91028.0,0.15942352]
[1731716857684,0.00164836,91058.0,91049.0,0.12467729]
[1731716858884,0.00164836,91058.0,91057.0,0.00014183]
[1731716861375,0.78324836,91058.0,91057.0,0.00014183]
[1731716861585,0.00011435,91057.0,91025.0,0.12467729]
[1731716861789,0.3608,91045.0,91043.0,0.12467729]
[1731716862787,0.09132,91056.0,91043.0,0.12467729]
[1731716862788,0.3608,91048.0,91043.0,0.12467729]
[1731716866588,0.3608,91048.0,91042.0,8.094e-05]
[1731716866812,0.0654,91047.0,91042.0,8.094e-05]
[1731716869690,0.42084,91046.0,91042.0,8.094e-05]
[1731716869882,0.09132,91046.0,91042.0,8.094e-05]
[1731716870082,0.09132,91045.0,91042.0,8.094e-05]
[1731716871694,0.0332,91047.0,91042.0,8.094e-05]
[1731716872391,0.0332,91047.0,91046.0,0.12467729]
[1731716873388,0.00011435,91057.0,91046.0,0.12467729]
[1731716873691,0.00011435,91057.0,91043.0,0.3608]
[1731716873692,0.36091435,91057.0,91054.0,0.12467729]
[1731716874493,0.36091435,91057.0,91046.0,0.12467729]
[1731716874494,0.3608,91055.0,91046.0,0.12467729]
[1731716874695,0.48547729,91047.0,91034.0,0.0051]
[1731716874883,0.3608,91035.0,91008.0,0.0059]
[1731716875089,0.3608,91014.0,91005.0,0.00077]
[1731716877001,0.3608,91014.0,91008.0,0.12467729]
[1731716877897,0.3608,91021.0,91008.0,0.12467729]
[1731716878199,0.3108,91021.0,91020.0,0.12467729]
[1731716878799,0.3608,91034.0,91020.0,0.81507729]
[1731716879003,0.3608,91034.0,91033.0,0.12467729]
[1731716879301,0.3608,91051.0,91033.0,0.12467729]
[1731716879599,0.3608,91051.0,91034.0,0.0327]
[1731716880497,0.3608,91042.0,91034.0,0.0327]
[1731716880808,0.3608,91042.0,91023.0,0.26172692]
[1731716881104,0.0327,91041.0,91023.0,0.03460521]
[1731716881301,0.0327,91041.0,91021.0,0.38570692]
[1731716881302,0.0327,91041.0,91025.0,0.12467729]
[1731716882601,0.3608,91042.0,91025.0,0.12467729]
[1731716882796,0.36136001,91051.0,91034.0,0.12467729]
[1731716883002,0.3608,91051.0,91034.0,0.12467729]
[1731716885403,0.13092593,91058.0,91042.0,0.12467729]
[1731716885600,0.09128,91059.0,91043.0,0.0648]
[1731716885803,0.09128,91059.0,91043.0,0.0951]
[1731716886595,0.3608,91060.0,91043.0,0.0951]
[1731716891010,0.3608,91052.0,91043.0,0.0951]
[1731716891210,0.3608,91052.0,91033.0,0.02197629]
[1731716891211,0.3608,91044.0,91025.0,0.59457488]
[1731716891407,0.3608,91031.0,91022.0,0.0317]
[1731716891611,0.3608,91031.0,91019.0,0.02196967]
[1731716891612,0.3608,91023.0,91019.0,0.02196967]
[1731716892314,0.3608,91023.0,91015.0,0.00164771]
[1731716895913,0.3608,91023.0,91016.0,0.02197901]
[1731716905829,0.3608,91021.0,91000.0,0.00011357]
[1731716906035,0.3608,91001.0,91000.0,0.00011357]
[1731716909229,0.3608,91001.0,91000.0,6.28e-06]
[1731716911127,0.36088985,91020.0,91000.0,6.28e-06]
[1731716911325,0.09128,91019.0,91004.0,0.12467729]
[1731716911526,0.3608,91013.0,91004.0,0.12467729]
[1731716911729,0.3608,91013.0,91000.0,6.28e-06]
[1731716911730,0.3608,91005.0,91000.0,6.28e-06]
[1731716922136,0.3608,91001.0,91000.0,6.28e-06]
[1731716922945,0.09128,91007.0,91000.0,6.28e-06]
[1731716924549,0.3608,91001.0,91000.0,6.28e-06]
[1731716924767,0.48547729,91001.0,91000.0,6.28e-06]
[1731716925148,0.61640322,91001.0,91000.0,6.28e-06]
[1731716925340,0.48547729,91001.0,91000.0,6.28e-06]
[1731716926455,1.11515729,91001.0,91000.0,6.28e-06]
[1731716926652,0.81515729,91001.0,91000.0,6.28e-06]
[1731716927544,0.86859208,91001.0,90978.0,0.0051]
[1731716927748,0.3608,90982.0,90975.0,0.0318]
[1731716930745,0.7216,90982.0,90970.0,0.00010207]
[1731716930945,0.3608,90971.0,90970.0,0.00010207]
[1731716933045,0.3608,90974.0,90970.0,0.00010207]
[1731716938559,0.000123,90973.0,90970.0,0.00010207]
[1731716938754,0.13095289,90972.0,90970.0,0.00010207]
[1731716938958,0.329883,90973.0,90970.0,0.00010207]
[1731716939154,0.16369111,90972.0,90970.0,0.00010207]
[1731716939358,0.16381411,90973.0,90970.0,0.00010207]
[1731716939565,0.16369111,90972.0,90970.0,0.00010207]
[1731716940058,0.16381411,90973.0,90970.0,0.00010207]
[1731716940261,0.19941201,90973.0,90970.0,0.00010207]
[1731716940453,0.12467729,90967.0,90949.0,0.0051]
[1731716940659,0.3608,90957.0,90948.0,0.0309]
[1731716942764,0.3608,90965.0,90954.0,0.3608]
[1731716943057,0.09124,90964.0,90950.0,0.3608]
[1731716943559,0.3608,90965.0,90952.0,0.12467729]
[1731716943769,0.3608,90965.0,90961.0,0.12467729]
[1731716943957,0.3608,90965.0,90962.0,0.0316]
[1731716944172,0.3608,90965.0,90962.0,0.0632]
[1731716944649,0.09124,90971.0,90962.0,0.0632]
[1731716945152,0.000123,90973.0,90962.0,0.0632]
[1731716945552,0.000123,90973.0,90968.0,0.12467729]
[1731716945762,0.000123,90973.0,90969.0,0.0319]
[1731716948362,0.000123,90973.0,90962.0,0.09882989]
[1731716948363,0.3608,90970.0,90962.0,0.0316]
[1731716949159,0.3608,90970.0,90958.0,0.3608]
[1731716950267,0.000123,90973.0,90967.0,0.12467729]
[1731716950465,0.360923,90973.0,90967.0,0.12467729]
[1731716951972,0.000123,90973.0,90967.0,0.12467729]
[1731716954074,0.000123,90973.0,90966.0,0.3608]
[1731716954263,0.000123,90973.0,90962.0,0.26172692]
[1731716954264,0.3608,90972.0,90962.0,0.26172692]
[1731716954565,0.3608,90972.0,90959.0,0.26172692]
[1731716954767,0.3608,90961.0,90956.0,0.29182692]
[1731716955073,0.45208,90960.0,90946.0,0.26172692]
[1731716955279,0.3608,90949.0,90945.0,0.00013847]
[1731716957566,0.09128,90948.0,90945.0,0.00013847]
[1731716961994,0.3608,90949.0,90945.0,0.00013847]
[1731716962173,0.09128,90953.0,90945.0,0.00013847]
[1731716962878,0.3608,90947.0,90945.0,0.00013847]
[1731716963087,0.3608,90950.0,90945.0,0.00013847]
[1731716963375,0.3608,90947.0,90945.0,0.00013847]
[1731716965675,0.3608,90947.0,90924.0,0.3608]
[1731716965676,0.45455729,90946.0,90924.0,0.3608]
[1731716965887,0.3608,90925.0,90921.0,0.00164952]
[1731716966071,0.09128,90924.0,90921.0,0.00164952]
[1731716966271,0.45324,90924.0,90921.0,5.455e-05]
[1731716966480,0.32996,90923.0,90906.0,0.02199545]
[1731716966677,0.3608,90913.0,90906.0,0.02199545]
[1731716966982,0.09128,90912.0,90906.0,0.02199545]
[1731716967372,0.09128,90912.0,90902.0,8.355e-05]
[1731716968184,0.39651453,90913.0,90902.0,8.355e-05]
[1731716968386,0.3608,90913.0,90902.0,0.12476084]
[1731716968681,0.09128,90912.0,90902.0,0.12476084]
[1731716969082,0.3608,90913.0,90902.0,0.12476084]
[1731716969380,0.09124,90912.0,90902.0,0.12476084]
[1731716969879,0.3608,90913.0,90903.0,0.02200431]
[1731716970081,0.09124,90915.0,90911.0,0.12467729]
[1731716970278,0.09124,90915.0,90912.0,0.0324]
[1731716970979,0.00013057,90922.0,90902.0,8.355e-05]
[1731716970980,0.3608,90913.0,90902.0,8.355e-05]
[1731716971187,0.09124,90912.0,90902.0,8.355e-05]
[1731716972284,0.09124,90911.0,90902.0,8.355e-05]
[1731716972583,0.00013057,90922.0,90910.0,0.12467729]
[1731716972788,0.00013057,90922.0,90920.0,0.12467729]
[1731716972987,0.00013057,90922.0,90921.0,0.0317]
[1731716975982,0.00013057,90922.0,90921.0,0.06702009]
[1731716976175,0.00013057,90922.0,90921.0,0.0317]
[1731716978392,0.00013057,90922.0,90916.0,0.3608]
[1731716979991,0.09137057,90922.0,90916.0,0.3608]
[1731716980487,0.09137057,90922.0,90911.0,0.0655]
[1731716980488,0.3608,90917.0,90911.0,0.0655]
[1731716981888,0.3608,90917.0,90911.0,0.0332]
[1731716993899,0.12467729,90912.0,90907.0,0.26172692]
[1731716994091,0.3608,90917.0,90907.0,0.26172692]
[1731716994293,0.3608,90917.0,90908.0,0.26172692]
[1731716994497,0.3608,90917.0,90907.0,0.26172692]
[1731716995191,0.49168819,90917.0,90909.0,0.26172692]
[1731716996197,0.49168819,90917.0,90910.0,0.26172692]
[1731716996800,0.09128,90916.0,90910.0,0.26172692]
[1731716996999,0.09128,90915.0,90910.0,0.26172692]
[1731716997191,0.4922482,90917.0,90911.0,0.26172692]
[1731716997391,0.09128,90916.0,90911.0,0.26172692]
[1731716997792,0.3608,90917.0,90911.0,0.26172692]
[1731716998191,0.09128,90918.0,90914.0,0.26172692]
[1731716998395,0.09128,90918.0,90916.0,0.26172692]
[1731716998600,0.09128,90918.0,90913.0,0.3608]
[1731716998905,0.00013057,90922.0,90913.0,0.3608]
[1731716999108,0.00013057,90922.0,90918.0,0.26362151]
[1731717000107,0.13101876,90922.0,90917.0,0.26362151]
[1731717000300,0.13101876,90922.0,90913.0,0.3608]
[1731717000301,0.00013057,90922.0,90913.0,0.3608]
[1731717000516,0.00013057,90922.0,90918.0,0.26366332]
[1731717000704,0.13088819,90920.0,90914.0,0.26366332]
[1731717000908,0.13088819,90920.0,90913.0,0.3608]
[1731717000909,0.13088819,90921.0,90915.0,0.26366332]
[1731717001104,0.13088819,90920.0,90915.0,0.26366332]
[1731717001295,0.13088819,90919.0,90914.0,0.26366332]
[1731717001497,0.13088819,90920.0,90915.0,0.26366332]
[1731717001894,0.13088819,90921.0,90915.0,0.26366332]
[1731717002107,0.13088819,90920.0,90916.0,0.26366332]
[1731717002301,0.13088819,90920.0,90917.0,0.26366332]
[1731717002509,0.00013057,90922.0,90917.0,0.26366332]
[1731717002510,0.13088819,90921.0,90917.0,0.26366332]
[1731717003806,0.2184029,90920.0,90913.0,0.3608]
[1731717004012,0.05346831,90919.0,90914.0,0.3608]
[1731717004307,0.00013057,90922.0,90918.0,0.12467729]
[1731717004505,0.05346168,90921.0,90918.0,0.12467729]
[1731717005311,0.13122564,90919.0,90918.0,0.12467729]
[1731717005513,0.05346168,90921.0,90918.0,0.12467729]
[1731717005815,2.5e-07,90922.0,90918.0,0.14667753]
[1731717006205,2.5e-07,90922.0,90921.0,0.3608]
[1731717006605,2.5e-07,90922.0,90921.0,0.69076]
[1731717007106,2.5e-07,90922.0,90921.0,0.72386]
[1731717007307,2.5e-07,90922.0,90921.0,0.3939]
[1731717007611,2.5e-07,90922.0,90921.0,0.0331]
[1731717010018,2.5e-07,90922.0,90918.0,0.02200024]
[1731717010516,2.5e-07,90922.0,90914.0,0.3608]
[1731717011016,2.5e-07,90922.0,90918.0,0.26366332]
[1731717011909,2.5e-07,90922.0,90921.0,0.12467729]
[1731717012614,2.5e-07,90922.0,90921.0,0.38834061]
[1731717012813,2.5e-07,90922.0,90921.0,0.12467729]
[1731717013419,2.5e-07,90922.0,90921.0,0.45242525]
[1731717013613,2.5e-07,90922.0,90921.0,0.76117263]
[1731717013810,2.5e-07,90922.0,90921.0,0.43342467]
[1731717014731,2.5e-07,90922.0,90921.0,0.76259854]
[1731717015535,2.5e-07,90922.0,90921.0,0.45385116]
[1731717016539,2.5e-07,90922.0,90921.0,0.12467729]
[1731717021950,0.05346165,90939.0,90921.0,0.90131227]
[1731717022147,0.1554,90959.0,90938.0,0.48547729]
[1731717022448,0.05345373,90958.0,90949.0,0.12467729]
[1731717022948,0.15326515,90957.0,90949.0,0.12467729]
[1731717023149,0.05345373,90956.0,90949.0,0.12467729]
[1731717023350,0.00010393,90957.0,90949.0,0.12467729]
[1731717023752,0.00010393,90957.0,90949.0,0.16047652]
[1731717025050,0.00010393,90957.0,90956.0,0.3608]
[1731717031753,0.00164999,90966.0,90956.0,0.81531729]
[1731717031953,0.00164999,90966.0,90965.0,0.48547729]
[1731717031954,0.00154606,90966.0,90965.0,0.48547729]
[1731717032351,0.0318,90985.0,90965.0,0.48547729]
[1731717032551,0.0318,90985.0,90981.0,0.12467729]
[1731717032753,0.0318,90985.0,90982.0,0.3608]
[1731717032754,0.00014037,90984.0,90982.0,0.3608]
[1731717032967,0.00014037,90984.0,90983.0,0.12467729]
[1731717036057,0.09272914,91010.0,90983.0,0.67015458]
[1731717036266,0.09272914,91010.0,91002.0,0.12467729]
[1731717036871,0.00012583,91009.0,91002.0,0.12467729]
[1731717038862,0.00012583,91009.0,91003.0,0.3608]
[1731717039058,0.1635698,91037.0,91008.0,0.12467729]
[1731717039261,0.00056001,91017.0,91013.0,0.3608]
[1731717039469,0.3608,91014.0,91003.0,0.39673288]
[1731717039972,0.0641,91013.0,91003.0,0.39673288]
[1731717040162,7.618e-05,91012.0,91005.0,0.12467729]
[1731717041160,0.28779254,91011.0,91009.0,0.12467729]
[1731717041364,0.05341958,91010.0,91009.0,0.12467729]
[1731717042070,0.16303131,91010.0,91009.0,0.12467729]
[1731717042870,0.09108,91011.0,91009.0,0.12467729]
[1731717043077,7.618e-05,91012.0,91009.0,0.12467729]
[1731717043571,7.618e-05,91012.0,91010.0,0.0305]
[1731717043761,7.618e-05,91012.0,91010.0,0.0614]
[1731717044262,7.618e-05,91012.0,91010.0,0.4222]
[1731717047879,7.618e-05,91012.0,91000.0,0.0333]
[1731717048102,7.618e-05,91012.0,91001.0,0.12467729]